bitfinex-derivatives/quotes_BTCF0:USTF0_20250716
["timestamp","ask_amount","ask_price","bid_price","bid_amount"]
[1752649856995,0.62060677,118220.0,118210.0,0.603]
[1752649857696,0.62060677,118220.0,118210.0,0.002]
[1752649859395,0.62060677,118220.0,118210.0,0.60296]
[1752649859986,0.62060677,118220.0,118210.0,0.60292]
[1752649860187,0.62060677,118220.0,118210.0,0.002]
[1752649860393,0.176211,118190.0,118180.0,1.1734007]
[1752649860588,0.54459682,118190.0,118180.0,1.2155065]
[1752649860791,0.54459682,118190.0,118180.0,1.8608]
[1752649860996,0.62071831,118190.0,118180.0,2.46168]
[1752649861398,0.62071831,118190.0,118180.0,2.10088]
[1752649861595,0.1762253,118180.0,118170.0,0.3608]
[1752649861796,0.63983223,118180.0,118170.0,0.3608]
[1752649862290,0.63983223,118180.0,118170.0,0.5300397]
[1752649862494,0.1762397,118170.0,118160.0,2.1569799]
[1752649862698,0.44905244,118170.0,118160.0,2.1569799]
[1752649862901,0.0002,118170.0,118160.0,2.1569799]
[1752649863196,0.07632662,118170.0,118160.0,2.1569799]
[1752649863392,0.13710006,118170.0,118160.0,2.1569799]
[1752649863693,0.06097344,118170.0,118160.0,2.7578199]
[1752649863893,0.06951344,118170.0,118160.0,2.7578199]
[1752649864397,0.13622763,118170.0,118160.0,2.7578199]
[1752649865197,0.67565305,118170.0,118160.0,2.7578199]
[1752649865399,0.61487961,118170.0,118160.0,2.7578199]
[1752649865598,0.61487961,118170.0,118160.0,2.7155065]
[1752649866098,0.61487961,118170.0,118160.0,1.2155065]
[1752649866897,0.44564001,118170.0,118160.0,1.2155065]
[1752649867196,0.61487961,118170.0,118160.0,1.2155065]
[1752649867701,0.44564001,118170.0,118160.0,1.2155065]
[1752649869400,0.44110001,118170.0,118160.0,1.2155065]
[1752649870303,0.0062,118170.0,118160.0,1.2155065]
[1752649870500,0.0062,118170.0,118160.0,1.58369232]
[1752649870898,0.0062,118170.0,118160.0,1.2155065]
[1752649871500,0.01074,118170.0,118160.0,0.6146665]
[1752649871799,0.38038582,118170.0,118160.0,0.5723531]
[1752649871997,0.54962542,118170.0,118160.0,1.1730731]
[1752649872802,0.38038582,118170.0,118160.0,1.1730731]
[1752649873102,0.37638582,118170.0,118160.0,1.1730731]
[1752649873302,0.37838582,118170.0,118160.0,1.1730731]
[1752649873505,0.37838582,118170.0,118160.0,0.5723531]
[1752649873704,0.37838582,118170.0,118160.0,1.1730331]
[1752649874400,0.0032,118170.0,118160.0,1.1730331]
[1752649876403,0.00774,118170.0,118160.0,1.1730331]
[1752649878306,0.37592582,118170.0,118160.0,1.1730331]
[1752649878607,0.37592582,118170.0,118160.0,1.1729531]
[1752649879398,0.37592582,118170.0,118160.0,0.8121531]
[1752649879608,0.37592582,118170.0,118160.0,1.5337531]
[1752649881408,0.37838582,118170.0,118160.0,1.5337531]
[1752649882802,0.0102,118170.0,118160.0,1.5337531]
[1752649883097,0.37838582,118170.0,118160.0,1.5337531]
[1752649883300,0.0032,118170.0,118160.0,1.5337531]
[1752649883501,0.37138582,118170.0,118160.0,1.5337531]
[1752649883803,0.37592582,118170.0,118160.0,1.5337531]
[1752649884002,0.37838582,118170.0,118160.0,1.5337531]
[1752649884701,0.37838582,118170.0,118160.0,0.9331531]
[1752649884901,0.54762542,118170.0,118160.0,1.5336731]
[1752649885907,0.37838582,118170.0,118160.0,1.5336731]
[1752649886305,0.54762542,118170.0,118160.0,0.9331531]
[1752649886506,0.54762542,118170.0,118160.0,1.5336331]
[1752649887110,0.37838582,118170.0,118160.0,1.5336331]
[1752649887505,0.54762542,118170.0,118160.0,1.5336331]
[1752649889911,0.37838582,118170.0,118160.0,1.5336331]
[1752649890610,0.0102,118170.0,118160.0,1.5336331]
[1752649890911,0.37838582,118170.0,118160.0,1.5335931]
[1752649891111,0.0102,118170.0,118160.0,1.5335931]
[1752649891311,0.37838582,118170.0,118160.0,1.5335931]
[1752649892413,0.37592582,118170.0,118160.0,1.5335931]
[1752649892608,0.0032,118170.0,118160.0,1.90177892]
[1752649893812,0.0032,118170.0,118160.0,1.5335931]
[1752649894315,0.008,118170.0,118160.0,1.5335931]
[1752649895512,0.0032,118170.0,118160.0,1.5335931]
[1752649895708,0.0032,118170.0,118160.0,1.90177892]
[1752649896818,0.07936754,118170.0,118160.0,1.90177892]
[1752649897418,0.0032,118170.0,118160.0,1.90177892]
[1752649898318,0.0032,118170.0,118160.0,1.5335931]
[1752649904315,0.06412707,118170.0,118160.0,1.90157892]
[1752649905118,0.06412707,118170.0,118160.0,1.90153892]
[1752649905718,0.06212707,118170.0,118160.0,1.90153892]
[1752649906020,0.06312707,118170.0,118160.0,1.90153892]
[1752649907328,0.06212707,118170.0,118160.0,1.90153892]
[1752649907523,0.0012,118170.0,118160.0,1.90153892]
[1752649909334,0.0012,118170.0,118160.0,1.5333531]
[1752649909526,0.0012,118170.0,118160.0,1.90153892]
[1752649909832,0.0012,118170.0,118160.0,1.90145892]
[1752649910825,0.0012,118170.0,118160.0,1.30133892]
[1752649911026,0.0012,118170.0,118160.0,1.90141892]
[1752649913032,0.0012,118170.0,118160.0,1.5332331]
[1752649913236,0.0012,118170.0,118160.0,1.90141892]
[1752649918133,0.06212707,118170.0,118160.0,1.90141892]
[1752649922839,0.06212707,118170.0,118160.0,1.30133892]
[1752649923033,0.06212707,118170.0,118160.0,1.90113892]
[1752649923236,0.0012,118170.0,118160.0,1.90113892]
[1752649925348,0.0012,118170.0,118160.0,1.17953892]
[1752649925548,0.0012,118170.0,118160.0,1.90113892]
[1752649927949,0.0012,118170.0,118160.0,1.5329531]
[1752649928150,0.0012,118170.0,118160.0,1.90113892]
[1752649931148,0.37636582,118170.0,118160.0,0.8908397]
[1752649931347,0.54560542,118170.0,118160.0,0.890854]
[1752649931547,0.62177296,118170.0,118160.0,1.490454]
[1752649932453,0.62177296,118170.0,118160.0,0.890854]
[1752649932644,0.62177296,118170.0,118160.0,1.490454]
[1752649934050,0.54560542,118170.0,118160.0,1.490454]
[1752649934248,0.60649376,118170.0,118160.0,1.490454]
[1752649939051,0.60649376,118170.0,118160.0,0.890854]
[1752649939244,0.60649376,118170.0,118160.0,1.490414]
[1752649940950,0.43725416,118170.0,118160.0,1.490414]
[1752649941144,0.60649376,118170.0,118160.0,1.490414]
[1752649941345,0.54560542,118170.0,118160.0,1.490414]
[1752649941656,0.62177296,118170.0,118160.0,1.490414]
[1752649943459,0.45253336,118170.0,118160.0,1.490414]
[1752649943851,0.08434754,118170.0,118160.0,1.490414]
[1752649944055,0.45253336,118170.0,118160.0,1.490414]
[1752649944953,0.45353336,118170.0,118160.0,1.490414]
[1752649945754,0.45453336,118170.0,118160.0,1.490414]
[1752649946562,0.37836582,118170.0,118160.0,1.490414]
[1752649946864,0.37836582,118170.0,118160.0,0.890854]
[1752649947162,0.37836582,118170.0,118160.0,1.490294]
[1752649947556,0.45453336,118170.0,118160.0,1.490294]
[1752649947959,0.37836582,118170.0,118160.0,1.490294]
[1752649948460,0.45453336,118170.0,118160.0,1.490294]
[1752649949060,0.37836582,118170.0,118160.0,1.490294]
[1752649950058,0.01018,118170.0,118160.0,1.490294]
[1752649950265,0.06875797,118170.0,118160.0,1.85843982]
[1752649950460,0.06403797,118170.0,118160.0,1.85843982]
[1752649951168,0.06403797,118170.0,118160.0,1.490254]
[1752649951359,0.06871797,118170.0,118160.0,1.85843982]
[1752649951763,0.06871797,118170.0,118160.0,1.490254]
[1752649956171,0.00788,118170.0,118160.0,1.490254]
[1752649958276,0.08404754,118170.0,118160.0,1.490254]
[1752649959377,0.45456336,118170.0,118160.0,1.490054]
[1752649959576,0.37839582,118170.0,118160.0,1.490054]
[1752649959876,0.54763542,118170.0,118160.0,0.7216]
[1752649960075,0.68470334,118170.0,118160.0,1.3208]
[1752649960371,0.62380296,118170.0,118160.0,1.3208]
[1752649960975,0.25561714,118170.0,118160.0,1.490054]
[1752649961177,0.62380296,118170.0,118160.0,1.490054]
[1752649961770,0.08637754,118170.0,118160.0,1.490054]
[1752649961971,0.45456336,118170.0,118160.0,1.490054]
[1752649962172,0.62380296,118170.0,118160.0,1.490054]
[1752649962680,0.08637754,118170.0,118160.0,1.490054]
[1752649962978,0.45456336,118170.0,118160.0,1.490054]
[1752649963780,0.62380296,118170.0,118160.0,1.490054]
[1752649965380,0.65426998,118170.0,118160.0,1.490054]
[1752649966479,0.73040199,118170.0,118160.0,1.490054]
[1752649966684,0.62376743,118170.0,118160.0,1.490054]
[1752649971789,0.62376743,118170.0,118160.0,0.768454]
[1752649971989,0.62376743,118170.0,118160.0,1.129254]
[1752649974491,0.54763542,118170.0,118160.0,1.129254]
[1752649974989,0.25558161,118170.0,118160.0,1.129254]
[1752649975190,0.62376743,118170.0,118160.0,1.129254]
[1752649975393,0.62376743,118170.0,118160.0,0.530054]
[1752649975592,0.62376743,118170.0,118160.0,1.129214]
[1752649978794,0.54763542,118170.0,118160.0,1.129214]
[1752649978995,0.1794496,118170.0,118160.0,1.129214]
[1752649979199,0.54763542,118170.0,118160.0,1.129214]
[1752649980293,0.62376743,118170.0,118160.0,1.129214]
[1752649980596,0.62376743,118170.0,118160.0,0.530054]
[1752649981093,0.53231752,118170.0,118160.0,1.129174]
[1752649984295,0.63895208,118170.0,118160.0,1.129174]
[1752649984494,0.56282007,118170.0,118160.0,1.129174]
[1752649984996,0.63894537,118170.0,118160.0,1.129174]
[1752649985197,0.53231081,118170.0,118160.0,1.129174]
[1752649986399,0.54895096,118170.0,118160.0,1.06058126]
[1752649986698,0.53231081,118170.0,118160.0,1.06058126]
[1752649987291,0.72443122,118170.0,118160.0,0.3608]
[1752649987601,0.89367082,118170.0,118160.0,0.530054]
[1752649988101,0.81754552,118170.0,118160.0,0.530054]
[1752649988603,0.54080961,118170.0,118160.0,0.530054]
[1752649989997,0.49849681,118170.0,118160.0,0.530054]
[1752649992607,0.49849681,118170.0,118160.0,2.030054]
[1752649993205,0.60513137,118170.0,118160.0,2.030054]
[1752649993405,0.60513137,118170.0,118160.0,1.669254]
[1752649993605,0.60513137,118170.0,118160.0,2.030054]
[1752649994111,0.56282007,118170.0,118160.0,2.30678991]
[1752649994609,0.53239652,118170.0,118160.0,2.030054]
[1752649994817,0.53239652,118170.0,118160.0,2.30678991]
[1752649997217,0.45618551,118170.0,118160.0,2.30678991]
[1752649999418,0.45618551,118170.0,118160.0,1.94598991]
[1752649999618,0.45618551,118170.0,118160.0,2.30678991]
[1752650000414,0.53239652,118170.0,118160.0,2.030054]
[1752650000718,0.53239652,118170.0,118160.0,2.30678991]
[1752650001412,0.53239652,118170.0,118160.0,1.94598991]
[1752650001613,0.25566061,118170.0,118160.0,2.30678991]
[1752650001811,0.53239652,118170.0,118160.0,2.30678991]
[1752650003319,0.45618551,118170.0,118160.0,2.30678991]
[1752650003520,0.28608416,118170.0,118160.0,2.30678991]
[1752650003822,0.56282007,118170.0,118160.0,2.30678991]
[1752650004410,0.56282007,118170.0,118160.0,2.030054]
[1752650005119,0.63902911,118170.0,118160.0,2.30678991]
[1752650005318,0.53239455,118170.0,118160.0,2.30678991]
[1752650005821,0.53239455,118170.0,118160.0,2.030054]
[1752650006420,0.53239455,118170.0,118160.0,2.629174]
[1752650009423,0.53239455,118170.0,118160.0,2.268374]
[1752650009616,0.53239455,118170.0,118160.0,2.629174]
[1752650009921,0.25565864,118170.0,118160.0,2.629174]
[1752650010118,0.53239455,118170.0,118160.0,2.629174]
[1752650010319,0.53239455,118170.0,118160.0,2.030054]
[1752650010523,0.45618551,118170.0,118160.0,2.629174]
[1752650010722,0.56282007,118170.0,118160.0,2.629174]
[1752650011325,0.10983456,118170.0,118160.0,3.18264582]
[1752650011526,0.18603353,118170.0,118160.0,2.629174]
[1752650011719,0.35613488,118170.0,118160.0,2.90590991]
[1752650012325,0.35613488,118170.0,118160.0,3.18264582]
[1752650012623,0.27993591,118170.0,118160.0,3.18264582]
[1752650012827,0.0032,118170.0,118160.0,3.18264582]
[1752650013221,0.07936799,118170.0,118160.0,3.18264582]
[1752650014920,0.06412605,118170.0,118160.0,3.18264582]
[1752650017025,0.06412605,118170.0,118160.0,3.54344582]
[1752650017230,0.34086196,118170.0,118160.0,3.26670991]
[1752650017529,0.34086196,118170.0,118160.0,3.54344582]
[1752650017732,0.06412605,118170.0,118160.0,3.54344582]
[1752650018029,0.34086196,118170.0,118160.0,3.54344582]
[1752650018731,0.06412605,118170.0,118160.0,3.54344582]
[1752650018929,0.34086196,118170.0,118160.0,3.54344582]
[1752650019427,0.06412605,118170.0,118160.0,3.54344582]
[1752650022231,0.0032,118170.0,118160.0,3.54344582]
[1752650023730,0.0022,118170.0,118160.0,3.54336582]
[1752650023930,0.0022,118170.0,118160.0,2.94432582]
[1752650024132,0.0022,118170.0,118160.0,3.54336582]
[1752650024436,0.0022,118170.0,118160.0,2.94432582]
[1752650024629,0.0022,118170.0,118160.0,3.54336582]
[1752650024832,0.0022,118170.0,118160.0,2.94432582]
[1752650025032,0.0012,118170.0,118160.0,3.54436582]
[1752650025735,0.0012,118170.0,118160.0,3.54336582]
[1752650032646,0.00499,118180.0,118170.0,0.1692397]
[1752650032843,0.00499,118180.0,118170.0,1.40569561]
[1752650033143,0.37005981,118190.0,118180.0,0.1692253]
[1752650033447,0.37005981,118190.0,118180.0,1.40568121]
[1752650034044,0.37236981,118190.0,118180.0,1.40568121]
[1752650034248,0.31144376,118190.0,118180.0,1.40568121]
[1752650034742,0.31444376,118190.0,118180.0,1.40568121]
[1752650035146,0.39061175,118190.0,118180.0,1.40568121]
[1752650035442,0.39261175,118190.0,118180.0,1.40568121]
[1752650035745,0.56182275,118190.0,118180.0,1.1289453]
[1752650035947,0.56182275,118190.0,118180.0,1.40568121]
[1752650037040,0.56182275,118190.0,118180.0,0.5300253]
[1752650037355,0.83855866,118190.0,118180.0,1.1289053]
[1752650037648,0.56182275,118190.0,118180.0,1.1289053]
[1752650038743,0.83855866,118190.0,118180.0,0.3608]
[1752650038943,0.83855866,118190.0,118180.0,0.9626]
[1752650040549,0.83855866,118190.0,118180.0,0.96256]
[1752650041050,0.65401206,118190.0,118180.0,0.96256]
[1752650042148,0.65401206,118190.0,118180.0,1.1317853]
[1752650042847,0.65401206,118190.0,118180.0,0.5300253]
[1752650043044,0.65401206,118190.0,118180.0,1.1309453]
[1752650043549,0.57784407,118190.0,118180.0,1.1309453]
[1752650043848,0.57784407,118190.0,118180.0,0.96172]
[1752650044742,0.68447863,118190.0,118180.0,0.96172]
[1752650045249,0.68447863,118190.0,118180.0,1.1309453]
[1752650046350,0.76062306,118190.0,118180.0,1.1309453]
[1752650046545,0.6539885,118190.0,118180.0,1.1309453]
[1752650054059,0.28506328,118190.0,118180.0,1.1309453]
[1752650054358,0.6541885,118190.0,118180.0,1.1309453]
[1752650056356,0.68467863,118190.0,118180.0,1.1309453]
[1752650058355,0.68467863,118190.0,118180.0,0.7701453]
[1752650058554,0.68467863,118190.0,118180.0,1.1309453]
[1752650059155,0.68467863,118190.0,118180.0,0.5300253]
[1752650059458,0.51546763,118190.0,118180.0,1.1289453]
[1752650059655,0.40883307,118190.0,118180.0,1.1289453]
[1752650060657,0.38992347,118190.0,118180.0,1.1289453]
[1752650062559,0.55913447,118190.0,118180.0,1.1289453]
[1752650062960,0.74355473,118190.0,118180.0,1.1289453]
[1752650064760,0.74355473,118190.0,118180.0,0.3608]
[1752650064953,0.74355473,118190.0,118180.0,0.95972]
[1752650065148,0.19020925,118190.0,118180.0,0.95972]
[1752650065355,0.74355473,118190.0,118180.0,1.1289453]
[1752650067364,0.74355473,118190.0,118180.0,0.7681453]
[1752650067563,0.74355473,118190.0,118180.0,1.1289453]
[1752650069164,0.19020925,118190.0,118180.0,0.5300253]
[1752650069361,0.74355473,118190.0,118180.0,0.5300253]
[1752650072568,0.85022198,118190.0,118180.0,0.5300253]
[1752650074168,0.74355473,118190.0,118180.0,0.5300253]
[1752650074668,0.85022198,118190.0,118180.0,0.5300253]
[1752650077470,1.34239473,118190.0,118180.0,0.5300253]
[1752650080472,0.74355473,118190.0,118180.0,0.5300253]
[1752650084372,0.85021118,118190.0,118180.0,0.5300253]
[1752650089876,0.2968657,118190.0,118180.0,0.5300253]
[1752650090174,0.1276547,118190.0,118180.0,0.5300253]
[1752650090472,0.40432744,118190.0,118180.0,0.5300253]
[1752650090674,0.68100018,118190.0,118180.0,0.5300253]
[1752650091077,0.85021118,118190.0,118180.0,0.5300253]
[1752650099987,0.85021118,118190.0,118180.0,1.1285053]
[1752650100286,1.12688392,118190.0,118180.0,0.7677053]
[1752650100587,0.74355473,118190.0,118180.0,0.7677053]
[1752650101184,0.1765097,118170.0,118160.0,0.5723543]
[1752650101388,0.80625151,118170.0,118160.0,1.2131471]
[1752650101688,0.73005518,118170.0,118160.0,0.5300416]
[1752650101979,0.73005518,118170.0,118150.0,0.4877465]
[1752650101980,0.171634,118160.0,118150.0,1.2131267]
[1752650102187,1.08294242,118160.0,118150.0,1.2131267]
[1752650102982,1.08294242,118160.0,118150.0,0.6146867]
[1752650103179,1.08294242,118160.0,118150.0,1.2140867]
[1752650103377,1.08294242,118160.0,118150.0,1.2150867]
[1752650105084,0.99120256,118160.0,118150.0,1.2150867]
[1752650108391,0.91500236,118160.0,118150.0,1.2150867]
[1752650109297,0.97578902,118160.0,118150.0,1.2150867]
[1752650110285,0.23751066,118160.0,118150.0,1.2150867]
[1752650110488,0.43739584,118160.0,118150.0,1.2150867]
[1752650112494,0.06825666,118160.0,118150.0,1.2150867]
[1752650112695,0.43739584,118160.0,118150.0,1.2150867]
[1752650113993,0.37660918,118160.0,118150.0,1.2150867]
[1752650114197,0.54586318,118160.0,118150.0,1.2150867]
[1752650114498,0.60662644,118160.0,118150.0,1.2150867]
[1752650114898,0.23748726,118160.0,118150.0,1.1726509]
[1752650115096,0.60662644,118160.0,118150.0,1.1726509]
[1752650115793,0.54586318,118160.0,118150.0,1.1726509]
[1752650117398,0.176724,118160.0,118150.0,1.1726509]
[1752650117599,0.37660918,118160.0,118150.0,1.1726509]
[1752650121403,0.45280938,118160.0,118150.0,2.6726509]
[1752650125208,0.45280938,118160.0,118150.0,1.1726509]
[1752650125599,0.37660918,118160.0,118150.0,1.1726509]
[1752650127006,0.55864864,118160.0,118150.0,1.1726509]
[1752650127202,0.00509,118160.0,118150.0,1.44943022]
[1752650127408,0.55375864,118160.0,118150.0,1.44943022]
[1752650127705,0.61460639,118160.0,118150.0,1.1726509]
[1752650128406,0.61460639,118160.0,118150.0,1.44943022]
[1752650128901,0.36919896,118160.0,118150.0,1.1726509]
[1752650129103,0.44539916,118160.0,118150.0,1.1726509]
[1752650129802,0.0764002,118160.0,118150.0,1.1726509]
[1752650130010,0.44539916,118160.0,118150.0,1.1726509]
[1752650131507,0.45010916,118160.0,118150.0,1.1726509]
[1752650132007,0.0811102,118160.0,118150.0,1.1726509]
[1752650132214,0.45010916,118160.0,118150.0,1.1726509]
[1752650134608,0.0764002,118160.0,118150.0,1.54164986]
[1752650135607,0.13731251,118160.0,118150.0,1.54164986]
[1752650135809,0.06111231,118160.0,118150.0,1.1726509]
[1752650136299,0.0002,118160.0,118150.0,1.1726509]
[1752650136903,0.0002,118160.0,118150.0,1.54164986]
[1752650138812,0.06091231,118170.0,118160.0,0.1692541]
[1752650139009,0.06091231,118170.0,118160.0,0.89905306]
[1752650139409,0.06091231,118170.0,118160.0,0.5300541]
[1752650140012,0.43462127,118170.0,118160.0,0.5300541]
[1752650140316,0.37370896,118170.0,118160.0,0.5300541]
[1752650142316,0.00471,118170.0,118160.0,0.5300541]
[1752650143017,0.00471,118170.0,118160.0,1.1277341]
[1752650143419,0.06562231,118170.0,118160.0,1.1277341]
[1752650144111,0.00471,118170.0,118160.0,1.1277341]
[1752650144519,0.06562231,118170.0,118160.0,1.1277341]
[1752650145510,0.00471,118170.0,118160.0,1.1277341]
[1752650148224,0.00471,118170.0,118160.0,1.49673306]
[1752650148418,0.00471,118170.0,118160.0,1.1277341]
[1752650149522,0.00471,118170.0,118160.0,1.49673306]
[1752650149717,0.37370896,118180.0,118170.0,0.1692397]
[1752650149917,0.45222916,118180.0,118170.0,0.5300397]
[1752650151025,0.63656466,118180.0,118170.0,0.80670693]
[1752650151224,0.63756466,118180.0,118170.0,0.80670693]
[1752650151426,0.63856466,118180.0,118170.0,0.80670693]
[1752650152726,0.0852302,118180.0,118170.0,0.80670693]
[1752650152928,0.63856466,118180.0,118170.0,0.5300397]
[1752650153529,0.63856466,118180.0,118170.0,0.80670693]
[1752650153828,0.0852302,118180.0,118170.0,0.5300397]
[1752650154132,0.63856466,118180.0,118170.0,0.5300397]
[1752650156425,0.63856466,118180.0,118170.0,0.80670693]
[1752650156627,0.63876466,118180.0,118170.0,0.80670693]
[1752650158340,0.63876466,118180.0,118170.0,0.5300397]
[1752650158538,0.63876466,118180.0,118170.0,0.80670693]
[1752650158937,0.0854302,118180.0,118170.0,0.80670693]
[1752650159139,0.63876466,118180.0,118170.0,0.80670693]
[1752650159833,0.63876466,118180.0,118170.0,0.5300397]
[1752650163842,0.63876466,118180.0,118170.0,1.1273997]
[1752650165140,0.0831102,118180.0,118170.0,1.1273997]
[1752650165340,0.63644466,118180.0,118170.0,1.40406693]
[1752650167045,0.0831102,118180.0,118170.0,1.40406693]
[1752650167239,0.35977743,118180.0,118170.0,1.40406693]
[1752650168145,0.35977743,118180.0,118170.0,1.1273997]
[1752650168347,0.35977743,118180.0,118170.0,1.40406693]
[1752650168755,0.35977743,118180.0,118170.0,1.1273997]
[1752650168939,0.35977743,118180.0,118170.0,1.40406693]
[1752650169241,0.35977743,118180.0,118170.0,1.1273997]
[1752650169445,0.63644466,118180.0,118170.0,1.40406693]
[1752650169650,0.63644466,118180.0,118170.0,1.1273997]
[1752650169847,0.63644466,118180.0,118170.0,1.40406693]
[1752650171052,0.0831102,118180.0,118170.0,1.40406693]
[1752650171251,0.63644466,118180.0,118170.0,1.40406693]
[1752650174265,0.35977743,118180.0,118170.0,1.40406693]
[1752650175766,0.0831102,118180.0,118170.0,1.40406693]
[1752650175965,0.35977743,118180.0,118170.0,1.40406693]
[1752650177069,0.0831102,118180.0,118170.0,1.40406693]
[1752650177469,0.35977743,118180.0,118170.0,1.40406693]
[1752650178370,0.35977743,118180.0,118170.0,1.1273997]
[1752650178566,0.35977743,118180.0,118170.0,1.40406693]
[1752650179367,0.35977743,118180.0,118170.0,1.1273997]
[1752650179670,0.35977743,118180.0,118170.0,1.40406693]
[1752650182166,0.35506743,118180.0,118170.0,1.40406693]
[1752650182473,0.0784002,118180.0,118170.0,1.40406693]
[1752650182670,0.35506743,118180.0,118170.0,1.40406693]
[1752650182976,0.0784002,118180.0,118170.0,1.40378693]
[1752650183168,0.0832202,118180.0,118170.0,1.40378693]
[1752650184175,0.35988743,118180.0,118170.0,0.5300397]
[1752650184375,0.0832202,118180.0,118170.0,1.40374693]
[1752650184674,0.35988743,118180.0,118170.0,1.40374693]
[1752650185068,0.0832202,118180.0,118170.0,1.40374693]
[1752650185571,0.0832202,118180.0,118170.0,1.1270797]
[1752650185874,0.0832202,118180.0,118170.0,1.40374693]
[1752650186076,0.0784002,118180.0,118170.0,1.40374693]
[1752650186776,0.0022,118180.0,118170.0,1.40374693]
[1752650188472,0.06310646,118180.0,118170.0,1.40374693]
[1752650193079,0.06310646,118180.0,118170.0,1.1270797]
[1752650193277,0.06808646,118180.0,118170.0,1.40374693]
[1752650193884,0.06808646,118180.0,118170.0,1.1268397]
[1752650193885,0.34700369,118180.0,118170.0,1.1268397]
[1752650194083,0.34700369,118180.0,118170.0,1.40350693]
[1752650194981,0.07033646,118180.0,118170.0,1.40350693]
[1752650195182,0.34700369,118180.0,118170.0,1.40350693]
[1752650195987,0.07033646,118180.0,118170.0,1.40350693]
[1752650196184,0.34700369,118180.0,118170.0,1.40350693]
[1752650196386,0.28609723,118180.0,118170.0,1.40350693]
[1752650196882,0.28609723,118180.0,118170.0,1.1268397]
[1752650197082,0.28609723,118180.0,118170.0,1.40350693]
[1752650199483,0.00943,118180.0,118170.0,1.40350693]
[1752650199684,0.28609723,118180.0,118170.0,1.40350693]
[1752650200894,0.28609723,118180.0,118170.0,1.76430693]
[1752650201191,0.56276446,118180.0,118170.0,1.4876397]
[1752650201392,0.56276446,118180.0,118170.0,1.76430693]
[1752650201594,0.28609723,118180.0,118170.0,1.76430693]
[1752650204991,0.00718,118180.0,118170.0,1.76430693]
[1752650205197,0.06309804,118180.0,118170.0,1.76430693]
[1752650205396,0.06310112,118180.0,118170.0,1.76430693]
[1752650206597,0.06808112,118180.0,118170.0,1.76430693]
[1752650208699,0.06808112,118180.0,118170.0,1.04270693]
[1752650208903,0.06808112,118180.0,118170.0,1.76430693]
[1752650210401,0.00718,118180.0,118170.0,1.76430693]
[1752650211307,0.0022,118180.0,118170.0,1.76430693]
[1752650211601,0.06310112,118180.0,118170.0,1.76430693]
[1752650212193,0.06310112,118180.0,118170.0,2.04097416]
[1752650212596,0.0022,118180.0,118170.0,2.04097416]
[1752650213304,0.06313983,118180.0,118170.0,2.04097416]
[1752650218098,0.07614049,118190.0,118180.0,0.1692254]
[1752650218298,0.08099049,118200.0,118190.0,0.169211]
[1752650218495,0.08099049,118200.0,118190.0,1.40295823]
[1752650219404,0.08399049,118200.0,118190.0,1.40295823]
[1752650219600,0.08399049,118200.0,118190.0,1.46974608]
[1752650220898,0.07914049,118200.0,118190.0,1.56174981]
[1752650221302,0.003,118200.0,118190.0,1.56174981]
[1752650222598,0.00485,118210.0,118200.0,0.1691967]
[1752650222804,0.00485,118210.0,118200.0,0.89866766]
[1752650224110,0.0893912,118220.0,118210.0,0.1691824]
[1752650224404,0.01560071,118220.0,118210.0,1.49477336]
[1752650225509,0.01560071,118220.0,118210.0,1.50377336]
[1752650225709,0.01560071,118220.0,118210.0,1.50977336]
[1752650226214,0.01560071,118220.0,118210.0,1.1411024]
[1752650228412,0.01560071,118220.0,118210.0,1.50977336]
[1752650228613,0.07635261,118220.0,118210.0,1.50977336]
[1752650229003,0.07635261,118220.0,118210.0,1.1411024]
[1752650229206,0.01560071,118220.0,118210.0,1.50977336]
[1752650229614,0.07635261,118220.0,118210.0,1.50977336]
[1752650229913,0.01560071,118220.0,118210.0,1.50977336]
[1752650230714,0.07635261,118220.0,118210.0,1.50977336]
[1752650231815,0.07400261,118220.0,118210.0,1.50977336]
[1752650232009,0.01325071,118220.0,118210.0,1.50977336]
[1752650232611,0.01325071,118220.0,118210.0,1.50577336]
[1752650232914,0.01325071,118220.0,118210.0,1.50377336]
[1752650234313,0.00485,118220.0,118210.0,1.50377336]
[1752650234513,0.0656019,118220.0,118210.0,1.50377336]
[1752650234716,0.00485,118220.0,118210.0,1.49877336]
[1752650234917,0.00505,118220.0,118210.0,1.49477336]
[1752650240810,0.00505,118220.0,118210.0,1.13397336]
[1752650241016,0.00505,118220.0,118210.0,1.76333709]
[1752650241220,0.00505,118220.0,118210.0,1.4869024]
[1752650241420,0.00505,118220.0,118210.0,1.76333709]
[1752650244633,0.28148469,118220.0,118210.0,1.76333709]
[1752650244826,0.00505,118220.0,118210.0,1.76333709]
[1752650246634,0.0658019,118220.0,118210.0,1.76333709]
[1752650247132,0.00505,118220.0,118210.0,1.76333709]
[1752650247329,0.00505,118220.0,118210.0,1.4869024]
[1752650247531,0.00505,118220.0,118210.0,1.76333709]
[1752650248329,0.0658019,118220.0,118210.0,1.76333709]
[1752650248937,0.00505,118220.0,118210.0,1.76333709]
[1752650249634,0.28148469,118220.0,118210.0,1.4869024]
[1752650249834,0.28148469,118220.0,118210.0,1.76333709]
[1752650250739,0.00505,118220.0,118210.0,1.76333709]
[1752650251035,0.28148469,118220.0,118210.0,1.76333709]
[1752650255445,0.34223659,118220.0,118210.0,1.76333709]
[1752650256039,0.34223659,118220.0,118210.0,1.4869024]
[1752650256241,0.34223659,118220.0,118210.0,1.76333709]
[1752650257944,0.28148469,118220.0,118210.0,1.76333709]
[1752650259439,0.00505,118220.0,118210.0,1.76333709]
[1752650259643,0.28148469,118220.0,118210.0,1.76333709]
[1752650260046,0.00505,118220.0,118210.0,1.76333709]
[1752650260345,0.28148469,118220.0,118210.0,1.76333709]
[1752650261145,0.00505,118220.0,118210.0,1.76333709]
[1752650261344,0.28148469,118220.0,118210.0,1.76333709]
[1752650263048,0.34223659,118220.0,118210.0,1.76333709]
[1752650263242,0.0658019,118220.0,118210.0,1.76333709]
[1752650263752,0.34223659,118220.0,118210.0,1.76333709]
[1752650272852,0.34223659,118220.0,118210.0,1.4869024]
[1752650273154,0.34223659,118220.0,118210.0,1.76333709]
[1752650273856,0.0658019,118220.0,118210.0,1.76333709]
[1752650274158,0.34223659,118220.0,118210.0,1.76333709]
[1752650275056,0.0658019,118220.0,118210.0,1.76333709]
[1752650275452,0.00505,118220.0,118210.0,1.76333709]
[1752650275654,0.08119049,118220.0,118210.0,1.76333709]
[1752650276360,0.35762518,118220.0,118210.0,1.76333709]
[1752650277760,0.35762518,118220.0,118210.0,1.4869024]
[1752650278055,0.08119049,118220.0,118210.0,1.76333709]
[1752650278255,0.35762518,118220.0,118210.0,1.76333709]
[1752650279157,0.35762518,118220.0,118210.0,1.4869024]
[1752650279456,0.35762518,118220.0,118210.0,1.76333709]
[1752650279955,0.35762518,118220.0,118210.0,1.16721709]
[1752650280159,0.35998518,118220.0,118210.0,1.76181709]
[1752650280459,0.28384469,118220.0,118210.0,1.76181709]